[Event "Titled Tuesday Blitz February 01 B 2022"]
[White "Golubka, Petro"]
[Black "Pranav, V"]
[WhiteFideId "14114224"]
[BlackFideId "25060783"]
[WhiteElo "2392"]
[BlackElo "2349"]
[Result "1-0"]
[Round "03"]
[TimeControl "180+1"]
[Date "2022.02.01"]
[WhiteClock "0:00:12"]
[BlackClock "0:00:03"]

1. a3 {[%clk 0:03:00]}  e5 {[%clk 0:02:59]} 2. h3 {[%clk 0:03:01]}  d5 {[%clk 0:02:59]} 3. b3 {[%clk 0:03:02]}  Nc6 {[%clk 0:03:00]} 4. Bb2 {[%clk 0:03:03]}  Bc5 {[%clk 0:03:00]} 5. e3 {[%clk 0:03:03]}  Nf6 {[%clk 0:03:00]} 6. Bb5 {[%clk 0:03:01]}  Bd6 {[%clk 0:02:59]} 7. Nf3 {[%clk 0:03:00]}  e4 {[%clk 0:02:58]} 8. Ne5 {[%clk 0:02:59]}  Bd7 {[%clk 0:02:56]} 9. Nxd7 {[%clk 0:02:58]}  Nxd7 {[%clk 0:02:52]} 10. Qg4 {[%clk 0:02:51]}  Qe7 {[%clk 0:02:48]} 11. Qxg7 {[%clk 0:02:49]}  O-O-O {[%clk 0:02:47]} 12. Qh6 {[%clk 0:02:44]}  Rhg8 {[%clk 0:02:47]} 13. g3 {[%clk 0:02:43]}  Rg6 {[%clk 0:02:46]} 14. Qh5 {[%clk 0:02:42]}  Be5 {[%clk 0:02:47]} 15. Nc3 {[%clk 0:02:39]}  d4 {[%clk 0:02:41]} 16. Bxc6 {[%clk 0:02:30]}  bxc6 {[%clk 0:02:32]} 17. exd4 {[%clk 0:02:28]}  Bxd4 {[%clk 0:02:29]} 18. O-O-O {[%clk 0:02:08]}  Rg5 {[%clk 0:02:02]} 19. Qe2 {[%clk 0:02:03]}  Re5 {[%clk 0:01:57]} 20. f4 {[%clk 0:01:54]}  Re6 {[%clk 0:01:55]} 21. g4 {[%clk 0:01:52]}  Nb6 {[%clk 0:01:51]} 22. f5 {[%clk 0:01:49]}  Re5 {[%clk 0:01:51]} 23. Kb1 {[%clk 0:01:48]}  Kb7 {[%clk 0:01:42]} 24. Rhe1 {[%clk 0:01:46]}  Re8 {[%clk 0:01:30]} 25. Qf1 {[%clk 0:01:41]}  Qd6 {[%clk 0:01:22]} 26. Re2 {[%clk 0:01:37]}  a5 {[%clk 0:01:19]} 27. Rde1 {[%clk 0:01:35]}  e3 {[%clk 0:01:08]} 28. dxe3 {[%clk 0:01:32]}  Bxc3 {[%clk 0:00:48]} 29. Bxc3 {[%clk 0:01:31]}  Rb5 {[%clk 0:00:48]} 30. Bb2 {[%clk 0:01:21]}  a4 {[%clk 0:00:48]} 31. b4 {[%clk 0:01:19]}  Re4 {[%clk 0:00:48]} 32. Rd1 {[%clk 0:01:17]}  Qe7 {[%clk 0:00:47]} 33. Rd3 {[%clk 0:01:13]}  Nc4 {[%clk 0:00:47]} 34. Qc1 {[%clk 0:01:07]}  c5 {[%clk 0:00:46]} 35. c3 {[%clk 0:01:07]}  Ne5 {[%clk 0:00:36]} 36. Rd5 {[%clk 0:01:00]}  c6 {[%clk 0:00:34]} 37. Rd1 {[%clk 0:00:58]}  c4 {[%clk 0:00:33]} 38. Rd4 {[%clk 0:00:57]}  Nd3 {[%clk 0:00:29]} 39. Qc2 {[%clk 0:00:55]}  Rxe3 {[%clk 0:00:27]} 40. Rxe3 {[%clk 0:00:52]}  Qxe3 {[%clk 0:00:28]} 41. Rxc4 {[%clk 0:00:41]}  Ne1 {[%clk 0:00:27]} 42. Qd1 {[%clk 0:00:35]}  Rd5 {[%clk 0:00:23]} 43. Rd4 {[%clk 0:00:34]}  Nd3 {[%clk 0:00:24]} 44. Rxd5 {[%clk 0:00:30]}  cxd5 {[%clk 0:00:25]} 45. Qxa4 {[%clk 0:00:19]}  Qe1+ {[%clk 0:00:24]} 46. Ka2 {[%clk 0:00:19]}  Qe2 {[%clk 0:00:25]} 47. Qb5+ {[%clk 0:00:18]}  Kc7 {[%clk 0:00:25]} 48. Qa5+ {[%clk 0:00:17]}  Kd6 {[%clk 0:00:21]} 49. Qd8+ {[%clk 0:00:15]}  Kc6 {[%clk 0:00:19]} 50. b5+ {[%clk 0:00:16]}  Kc5 {[%clk 0:00:11]} 51. Qc7+ {[%clk 0:00:14]}  Kxb5 {[%clk 0:00:11]} 52. a4+ {[%clk 0:00:14]}  Kxa4 {[%clk 0:00:08]} 53. Qc6+ {[%clk 0:00:12]}  Ka5 {[%clk 0:00:08]} 54. Qxd5+ {[%clk 0:00:12]}  Kb6 {[%clk 0:00:09]} 55. Qd4+ {[%clk 0:00:12]}  Kc6 {[%clk 0:00:08]} 56. c4 {[%clk 0:00:12]}  Nb4+ {[%clk 0:00:05]} 57. Kb3 {[%clk 0:00:11]}  Nd3 {[%clk 0:00:01]} 58. Qd5+ {[%clk 0:00:11]}  Kc7 {[%clk 0:00:02]} 59. Ba3 {[%clk 0:00:11]}  Qd1+ {[%clk 0:00:02]} 60. Kc3 {[%clk 0:00:11]}  Qa1+ {[%clk 0:00:02]} 61. Kxd3 {[%clk 0:00:11]}  Qxa3+ {[%clk 0:00:03]} 62. Ke4 {[%clk 0:00:12]}  Qxh3 {[%clk 0:00:03]} 63. Qxf7+ {[%clk 0:00:12]}  Kd8 {[%clk 0:00:04]} 64. Qf6+ {[%clk 0:00:12]}  Kd7 {[%clk 0:00:04]} 65. Qe6+ {[%clk 0:00:12]}  Kd8 {[%clk 0:00:05]} 66. f6 {[%clk 0:00:13]}  Qh6 {[%clk 0:00:03]} 67. Qe7+ {[%clk 0:00:12]}  Kc8 {[%clk 0:00:03]} 68. f7 {[%clk 0:00:12]}  Qg6+ {[%clk 0:00:03]} 69. Ke5 {[%clk 0:00:13]}  Qg7+ {[%clk 0:00:03]} 70. Qf6 {[%clk 0:00:12]}  Qf8 {[%clk 0:00:03]} 71. Qe6+ {[%clk 0:00:12]}  Kb7 {[%clk 0:00:03]} 72. Qd7+ {[%clk 0:00:12]}  Ka6 {[%clk 0:00:03]} 73. Qd6+ {[%clk 0:00:12]} 1-0


[Site "https://www.chess.com"]

[Event "Titled Tuesday Blitz February 01 B 2022"]
[White "Jobava, Baadur"]
[Black "Blohberger, Felix"]
[WhiteFideId "13601520"]
[BlackFideId "1632051"]
[WhiteElo "2617"]
[BlackElo "2474"]
[Result "1/2-1/2"]
[Round "03"]
[TimeControl "180+1"]
[Date "2022.02.01"]
[WhiteClock "0:00:30"]
[BlackClock "0:00:05"]

1. b3 {[%clk 0:03:00]}  d5 {[%clk 0:02:55]} 2. Bb2 {[%clk 0:03:01]}  Bf5 {[%clk 0:02:54]} 3. e3 {[%clk 0:03:00]}  Nf6 {[%clk 0:02:53]} 4. f4 {[%clk 0:03:00]}  e6 {[%clk 0:02:53]} 5. Nf3 {[%clk 0:03:00]}  Be7 {[%clk 0:02:53]} 6. Nc3 {[%clk 0:02:58]}  O-O {[%clk 0:02:52]} 7. Bd3 {[%clk 0:02:56]}  c5 {[%clk 0:02:49]} 8. Ne2 {[%clk 0:02:50]}  Nc6 {[%clk 0:02:33]} 9. O-O {[%clk 0:02:50]}  h6 {[%clk 0:02:17]} 10. h3 {[%clk 0:02:48]}  Nb4 {[%clk 0:01:51]} 11. Bxf5 {[%clk 0:02:44]}  exf5 {[%clk 0:01:49]} 12. Ne5 {[%clk 0:02:40]}  Rc8 {[%clk 0:01:47]} 13. g4 {[%clk 0:02:31]}  fxg4 {[%clk 0:01:39]} 14. hxg4 {[%clk 0:02:32]}  Nc6 {[%clk 0:01:33]} 15. Ng3 {[%clk 0:02:32]}  Nxe5 {[%clk 0:01:23]} 16. Bxe5 {[%clk 0:02:33]}  Ne4 {[%clk 0:01:16]} 17. Nf5 {[%clk 0:02:32]}  Bf6 {[%clk 0:01:14]} 18. d3 {[%clk 0:02:28]}  Bxe5 {[%clk 0:01:12]} 19. fxe5 {[%clk 0:02:25]}  Ng5 {[%clk 0:01:11]} 20. Qd2 {[%clk 0:02:06]}  Rc7 {[%clk 0:01:11]} 21. Qg2 {[%clk 0:02:01]}  Re8 {[%clk 0:01:08]} 22. d4 {[%clk 0:02:01]}  Re6 {[%clk 0:01:01]} 23. c3 {[%clk 0:01:59]}  cxd4 {[%clk 0:00:59]} 24. cxd4 {[%clk 0:02:00]}  Rec6 {[%clk 0:00:58]} 25. Rae1 {[%clk 0:01:41]}  Rc2 {[%clk 0:00:55]} 26. Re2 {[%clk 0:01:42]}  Rxe2 {[%clk 0:00:48]} 27. Qxe2 {[%clk 0:01:42]}  Qd7 {[%clk 0:00:46]} 28. Qg2 {[%clk 0:01:39]}  a6 {[%clk 0:00:42]} 29. Nd6 {[%clk 0:01:19]}  Qe6 {[%clk 0:00:42]} 30. Kh2 {[%clk 0:01:07]}  Rc3 {[%clk 0:00:41]} 31. Nf5 {[%clk 0:01:05]}  Kh7 {[%clk 0:00:32]} 32. Qf2 {[%clk 0:00:49]}  Qc8 {[%clk 0:00:24]} 33. Qf4 {[%clk 0:00:42]}  Rc2+ {[%clk 0:00:24]} 34. Rf2 {[%clk 0:00:33]}  Ne4 {[%clk 0:00:21]} 35. Rxc2 {[%clk 0:00:33]}  Qxc2+ {[%clk 0:00:20]} 36. Kh3 {[%clk 0:00:34]}  Nf2+ {[%clk 0:00:15]} 37. Kg3 {[%clk 0:00:33]}  Ne4+ {[%clk 0:00:16]} 38. Kh3 {[%clk 0:00:32]}  Nf2+ {[%clk 0:00:11]} 39. Kg3 {[%clk 0:00:30]}  Ne4+ {[%clk 0:00:05]} 40. Kh3 {[%clk 0:00:30]} 1/2-1/2


[Site "https://www.chess.com"]

[Event "Titled Tuesday Blitz February 01 B 2022"]
[White "Kamsky, Gata"]
[Black "Cunha, Lucas Aguiar"]
[WhiteFideId "2000024"]
[BlackFideId "2125404"]
[WhiteElo "2645"]
[BlackElo "2361"]
[Result "1-0"]
[Round "03"]
[TimeControl "180+1"]
[Date "2022.02.01"]
[WhiteClock "0:00:10"]
[BlackClock "0:00:03"]

1. e4 {[%clk 0:03:00]}  c6 {[%clk 0:02:58]} 2. Nf3 {[%clk 0:02:46]}  d5 {[%clk 0:02:56]} 3. d3 {[%clk 0:02:47]}  Bg4 {[%clk 0:02:52]} 4. Nbd2 {[%clk 0:02:43]}  Nd7 {[%clk 0:02:50]} 5. Be2 {[%clk 0:02:34]}  e6 {[%clk 0:02:46]} 6. O-O {[%clk 0:02:26]}  Bd6 {[%clk 0:02:45]} 7. e5 {[%clk 0:02:25]}  Bc7 {[%clk 0:02:41]} 8. d4 {[%clk 0:02:24]}  c5 {[%clk 0:02:34]} 9. c3 {[%clk 0:02:23]}  Ne7 {[%clk 0:02:34]} 10. h3 {[%clk 0:02:22]}  Bh5 {[%clk 0:02:32]} 11. dxc5 {[%clk 0:01:44]}  Nxc5 {[%clk 0:02:05]} 12. Nd4 {[%clk 0:01:42]}  Bxe2 {[%clk 0:01:57]} 13. Qxe2 {[%clk 0:01:41]}  O-O {[%clk 0:01:58]} 14. f4 {[%clk 0:01:31]}  a6 {[%clk 0:01:50]} 15. N4b3 {[%clk 0:01:13]}  Nd7 {[%clk 0:01:47]} 16. Nf3 {[%clk 0:01:11]}  Nc6 {[%clk 0:01:47]} 17. Be3 {[%clk 0:01:09]}  f6 {[%clk 0:01:42]} 18. Nbd4 {[%clk 0:01:05]}  Qe7 {[%clk 0:01:20]} 19. exf6 {[%clk 0:01:01]}  Rxf6 {[%clk 0:01:13]} 20. Rae1 {[%clk 0:00:54]}  Re8 {[%clk 0:01:09]} 21. Kh1 {[%clk 0:00:49]}  e5 {[%clk 0:00:55]} 22. fxe5 {[%clk 0:00:46]}  Ndxe5 {[%clk 0:00:56]} 23. Bg5 {[%clk 0:00:38]}  Nxf3 {[%clk 0:00:54]} 24. Qxe7 {[%clk 0:00:36]}  Nxe7 {[%clk 0:00:51]} 25. Nxf3 {[%clk 0:00:34]}  Rf7 {[%clk 0:00:46]} 26. Re2 {[%clk 0:00:18]}  h6 {[%clk 0:00:46]} 27. Bh4 {[%clk 0:00:16]}  g5 {[%clk 0:00:45]} 28. Bf2 {[%clk 0:00:15]}  Rd8 {[%clk 0:00:38]} 29. Rfe1 {[%clk 0:00:15]}  Ng6 {[%clk 0:00:39]} 30. Re8+ {[%clk 0:00:14]}  Rxe8 {[%clk 0:00:37]} 31. Rxe8+ {[%clk 0:00:14]}  Rf8 {[%clk 0:00:38]} 32. Rxf8+ {[%clk 0:00:12]}  Kxf8 {[%clk 0:00:39]} 33. Kg1 {[%clk 0:00:11]}  Kf7 {[%clk 0:00:38]} 34. Kf1 {[%clk 0:00:11]}  Nf4 {[%clk 0:00:39]} 35. Be3 {[%clk 0:00:11]}  Nd3 {[%clk 0:00:38]} 36. b3 {[%clk 0:00:10]}  Bf4 {[%clk 0:00:32]} 37. Ke2 {[%clk 0:00:10]}  Bxe3 {[%clk 0:00:32]} 38. Kxd3 {[%clk 0:00:10]}  Bf4 {[%clk 0:00:32]} 39. g4 {[%clk 0:00:09]}  Ke6 {[%clk 0:00:32]} 40. a4 {[%clk 0:00:09]}  b6 {[%clk 0:00:30]} 41. Nd4+ {[%clk 0:00:09]}  Ke5 {[%clk 0:00:27]} 42. Nc6+ {[%clk 0:00:06]}  Kd6 {[%clk 0:00:27]} 43. Nb4 {[%clk 0:00:06]}  a5 {[%clk 0:00:26]} 44. Nc2 {[%clk 0:00:07]}  Be5 {[%clk 0:00:23]} 45. Ne3 {[%clk 0:00:06]}  Ke6 {[%clk 0:00:23]} 46. b4 {[%clk 0:00:06]}  Bd6 {[%clk 0:00:16]} 47. bxa5 {[%clk 0:00:06]}  bxa5 {[%clk 0:00:17]} 48. Nf5 {[%clk 0:00:06]}  Bf8 {[%clk 0:00:16]} 49. Nd4+ {[%clk 0:00:06]}  Kd7 {[%clk 0:00:15]} 50. Nb3 {[%clk 0:00:05]}  Kc7 {[%clk 0:00:11]} 51. Nxa5 {[%clk 0:00:06]}  Bg7 {[%clk 0:00:07]} 52. Nb3 {[%clk 0:00:06]}  Kb6 {[%clk 0:00:05]} 53. c4 {[%clk 0:00:06]}  dxc4+ {[%clk 0:00:05]} 54. Kxc4 {[%clk 0:00:07]}  Kc6 {[%clk 0:00:04]} 55. a5 {[%clk 0:00:07]}  Bf8 {[%clk 0:00:04]} 56. Nd4+ {[%clk 0:00:07]}  Kb7 {[%clk 0:00:03]} 57. Kb5 {[%clk 0:00:07]}  Ka7 {[%clk 0:00:03]} 58. Nf5 {[%clk 0:00:07]}  Kb7 {[%clk 0:00:02]} 59. Kc4 {[%clk 0:00:06]}  Ka7 {[%clk 0:00:02]} 60. Kd5 {[%clk 0:00:06]}  Ka6 {[%clk 0:00:02]} 61. Ke6 {[%clk 0:00:07]}  Kxa5 {[%clk 0:00:02]} 62. Kf7 {[%clk 0:00:08]}  Ba3 {[%clk 0:00:02]} 63. Nxh6 {[%clk 0:00:08]}  Bc1 {[%clk 0:00:02]} 64. Kg6 {[%clk 0:00:08]}  Kb5 {[%clk 0:00:02]} 65. Nf7 {[%clk 0:00:09]}  Kc6 {[%clk 0:00:03]} 66. Nxg5 {[%clk 0:00:10]} 1-0


[Site "https://www.chess.com"]

[Event "Titled Tuesday Blitz February 01 B 2022"]
[White "Kosteniuk, Alexandra"]
[Black "Tang, Andrew"]
[WhiteFideId "4128125"]
[BlackFideId "2059630"]
[WhiteElo "2469"]
[BlackElo "2584"]
[Result "0-1"]
[Round "03"]
[TimeControl "180+1"]
[Date "2022.02.01"]
[WhiteClock "0:00:03"]
[BlackClock "0:00:05"]

1. e4 {[%clk 0:03:00]}  e5 {[%clk 0:02:58]} 2. Nf3 {[%clk 0:03:00]}  Nc6 {[%clk 0:02:59]} 3. Bb5 {[%clk 0:03:00]}  g6 {[%clk 0:02:59]} 4. c3 {[%clk 0:02:59]}  a6 {[%clk 0:02:59]} 5. Bxc6 {[%clk 0:02:58]}  dxc6 {[%clk 0:03:00]} 6. Nxe5 {[%clk 0:02:57]}  Qg5 {[%clk 0:02:58]} 7. d4 {[%clk 0:02:39]}  Qxg2 {[%clk 0:02:57]} 8. Qf3 {[%clk 0:02:37]}  Qxf3 {[%clk 0:02:47]} 9. Nxf3 {[%clk 0:02:38]}  f5 {[%clk 0:02:47]} 10. Bf4 {[%clk 0:02:29]}  Nf6 {[%clk 0:02:26]} 11. exf5 {[%clk 0:02:18]}  Bxf5 {[%clk 0:02:26]} 12. Bxc7 {[%clk 0:02:16]}  Bh6 {[%clk 0:02:26]} 13. Nbd2 {[%clk 0:01:56]}  Ne4 {[%clk 0:02:10]} 14. Rg1 {[%clk 0:01:04]}  O-O {[%clk 0:01:55]} 15. Nxe4 {[%clk 0:01:04]}  Bxe4 {[%clk 0:01:54]} 16. Ne5 {[%clk 0:01:05]}  Bf4 {[%clk 0:01:34]} 17. h4 {[%clk 0:01:04]}  Rf5 {[%clk 0:01:07]} 18. Rg4 {[%clk 0:00:58]}  Re8 {[%clk 0:00:55]} 19. Kf1 {[%clk 0:00:31]}  Ref8 {[%clk 0:00:29]} 20. Kg1 {[%clk 0:00:20]}  Bd5 {[%clk 0:00:18]} 21. Re1 {[%clk 0:00:19]}  Bd2 {[%clk 0:00:12]} 22. Re2 {[%clk 0:00:18]}  Bh6 {[%clk 0:00:09]} 23. c4 {[%clk 0:00:17]}  Bf7 {[%clk 0:00:05]} 24. Nxf7 {[%clk 0:00:17]}  R8xf7 {[%clk 0:00:05]} 25. Bg3 {[%clk 0:00:17]}  Bg7 {[%clk 0:00:05]} 26. Rge4 {[%clk 0:00:17]}  h6 {[%clk 0:00:05]} 27. Rd2 {[%clk 0:00:15]}  Rd7 {[%clk 0:00:05]} 28. Kg2 {[%clk 0:00:13]}  Kh7 {[%clk 0:00:05]} 29. b3 {[%clk 0:00:13]}  Kg8 {[%clk 0:00:05]} 30. Rd3 {[%clk 0:00:14]}  Kh7 {[%clk 0:00:05]} 31. a4 {[%clk 0:00:14]}  g5 {[%clk 0:00:05]} 32. hxg5 {[%clk 0:00:14]}  Rxg5 {[%clk 0:00:06]} 33. Rd2 {[%clk 0:00:13]}  h5 {[%clk 0:00:07]} 34. Kf3 {[%clk 0:00:13]}  Rf5+ {[%clk 0:00:07]} 35. Kg2 {[%clk 0:00:13]}  Bh6 {[%clk 0:00:07]} 36. Rde2 {[%clk 0:00:13]}  Bg7 {[%clk 0:00:07]} 37. Re7 {[%clk 0:00:13]}  Rxd4 {[%clk 0:00:07]} 38. Rxb7 {[%clk 0:00:12]}  Rg4 {[%clk 0:00:07]} 39. Kh3 {[%clk 0:00:12]}  Rf3 {[%clk 0:00:06]} 40. Ree7 {[%clk 0:00:12]}  Rg6 {[%clk 0:00:05]} 41. Kg2 {[%clk 0:00:10]}  Rf5 {[%clk 0:00:05]} 42. Kh3 {[%clk 0:00:10]}  Kh6 {[%clk 0:00:06]} 43. Red7 {[%clk 0:00:09]}  h4 {[%clk 0:00:05]} 44. Bxh4 {[%clk 0:00:09]}  Rh5 {[%clk 0:00:05]} 45. Rf7 {[%clk 0:00:05]}  Rg1 {[%clk 0:00:05]} 46. Kh2 {[%clk 0:00:03]}  Rg4 {[%clk 0:00:05]} 0-1


[Site "https://www.chess.com"]

[Event "Titled Tuesday Blitz February 01 B 2022"]
[White "Mirzoev, Azer"]
[Black "Novikov, Evgenij"]
[WhiteFideId "13400304"]
[BlackFideId "4125380"]
[WhiteElo "2525"]
[BlackElo "2242"]
[Result "0-1"]
[Round "03"]
[TimeControl "180+1"]
[Date "2022.02.01"]
[WhiteClock "0:00:03"]
[BlackClock "0:00:29"]

1. c4 {[%clk 0:02:59]}  e6 {[%clk 0:02:58]} 2. Nc3 {[%clk 0:02:58]}  d5 {[%clk 0:02:58]} 3. e3 {[%clk 0:02:58]}  c6 {[%clk 0:02:54]} 4. Nf3 {[%clk 0:02:58]}  f5 {[%clk 0:02:54]} 5. b3 {[%clk 0:02:58]}  Nf6 {[%clk 0:02:53]} 6. Bb2 {[%clk 0:02:58]}  Bd6 {[%clk 0:02:54]} 7. Be2 {[%clk 0:02:59]}  O-O {[%clk 0:02:54]} 8. O-O {[%clk 0:02:59]}  Qe7 {[%clk 0:02:49]} 9. d3 {[%clk 0:02:55]}  Bd7 {[%clk 0:02:45]} 10. e4 {[%clk 0:02:49]}  fxe4 {[%clk 0:02:26]} 11. dxe4 {[%clk 0:02:49]}  dxe4 {[%clk 0:02:27]} 12. Nd2 {[%clk 0:02:45]}  e3 {[%clk 0:02:13]} 13. fxe3 {[%clk 0:02:45]}  Bc5 {[%clk 0:02:07]} 14. Nde4 {[%clk 0:02:42]}  Bxe3+ {[%clk 0:02:05]} 15. Kh1 {[%clk 0:02:42]}  e5 {[%clk 0:01:56]} 16. Nxf6+ {[%clk 0:02:36]}  Rxf6 {[%clk 0:01:46]} 17. Rxf6 {[%clk 0:02:29]}  gxf6 {[%clk 0:01:46]} 18. Ne4 {[%clk 0:02:28]}  Bf5 {[%clk 0:01:41]} 19. Nd6 {[%clk 0:02:24]}  Bg6 {[%clk 0:01:37]} 20. Bg4 {[%clk 0:02:17]}  Na6 {[%clk 0:01:28]} 21. Nc8 {[%clk 0:01:35]}  Qe8 {[%clk 0:01:09]} 22. Qd6 {[%clk 0:01:16]}  Kg7 {[%clk 0:00:51]} 23. Rf1 {[%clk 0:01:11]}  Bg5 {[%clk 0:00:47]} 24. Bd7 {[%clk 0:00:49]}  Qf7 {[%clk 0:00:44]} 25. Bxe5 {[%clk 0:00:45]}  Nc5 {[%clk 0:00:37]} 26. Bh3 {[%clk 0:00:29]}  Ne4 {[%clk 0:00:37]} 27. Qd4 {[%clk 0:00:09]}  Qe8 {[%clk 0:00:36]} 28. Bc7 {[%clk 0:00:08]}  Rxc8 {[%clk 0:00:34]} 29. Bxc8 {[%clk 0:00:07]}  Qxc8 {[%clk 0:00:35]} 30. Bf4 {[%clk 0:00:07]}  Bxf4 {[%clk 0:00:35]} 31. Rxf4 {[%clk 0:00:07]}  Qe6 {[%clk 0:00:35]} 32. h3 {[%clk 0:00:07]}  c5 {[%clk 0:00:34]} 33. Qe3 {[%clk 0:00:05]}  Qe5 {[%clk 0:00:30]} 34. Kg1 {[%clk 0:00:05]}  Qd4 {[%clk 0:00:30]} 35. Qxd4 {[%clk 0:00:05]}  cxd4 {[%clk 0:00:30]} 36. Rf3 {[%clk 0:00:05]}  f5 {[%clk 0:00:30]} 37. Rf4 {[%clk 0:00:04]}  Kf6 {[%clk 0:00:31]} 38. Kf1 {[%clk 0:00:04]}  Ke5 {[%clk 0:00:31]} 39. Rh4 {[%clk 0:00:03]}  h5 {[%clk 0:00:30]} 40. Ke1 {[%clk 0:00:03]}  d3 {[%clk 0:00:29]} 41. Kd1 {[%clk 0:00:03]}  Kd4 {[%clk 0:00:29]} 42. Rf4 {[%clk 0:00:03]}  Ke3 {[%clk 0:00:29]} 43. Rf3+ {[%clk 0:00:03]}  Kd4 {[%clk 0:00:29]} 44. Rf4 {[%clk 0:00:03]}  Kc3 {[%clk 0:00:29]} 45. Rf3 {[%clk 0:00:03]}  h4 {[%clk 0:00:29]} 46. Rf4 {[%clk 0:00:03]}  Bh5+ {[%clk 0:00:29]} 0-1


[Site "https://www.chess.com"]

[Event "Titled Tuesday Blitz February 01 B 2022"]
[White "Murzin, Volodar"]
[Black "Sadhwani, Raunak"]
[WhiteFideId "44155573"]
[BlackFideId "35093487"]
[WhiteElo "2585"]
[BlackElo "2616"]
[Result "1-0"]
[Round "03"]
[TimeControl "180+1"]
[Date "2022.02.01"]
[WhiteClock "0:00:11"]
[BlackClock "0:00:03"]

1. e4 {[%clk 0:03:00]}  e5 {[%clk 0:03:00]} 2. Nf3 {[%clk 0:02:59]}  Nc6 {[%clk 0:03:01]} 3. Bb5 {[%clk 0:02:59]}  Nge7 {[%clk 0:03:00]} 4. O-O {[%clk 0:02:56]}  Ng6 {[%clk 0:03:00]} 5. c3 {[%clk 0:02:49]}  a6 {[%clk 0:03:00]} 6. Ba4 {[%clk 0:02:49]}  d5 {[%clk 0:03:00]} 7. exd5 {[%clk 0:02:47]}  Qxd5 {[%clk 0:03:01]} 8. d4 {[%clk 0:02:46]}  Bg4 {[%clk 0:02:59]} 9. Nbd2 {[%clk 0:02:31]}  O-O-O {[%clk 0:02:27]} 10. h3 {[%clk 0:02:29]}  Bxf3 {[%clk 0:02:27]} 11. Nxf3 {[%clk 0:02:26]}  exd4 {[%clk 0:02:21]} 12. Bb3 {[%clk 0:02:00]}  Qf5 {[%clk 0:01:54]} 13. cxd4 {[%clk 0:01:56]}  Bd6 {[%clk 0:01:55]} 14. Be3 {[%clk 0:01:37]}  Nf4 {[%clk 0:01:39]} 15. Rc1 {[%clk 0:01:33]}  Nxh3+ {[%clk 0:01:20]} 16. gxh3 {[%clk 0:01:04]}  Qxh3 {[%clk 0:01:21]} 17. Re1 {[%clk 0:00:52]}  g5 {[%clk 0:00:47]} 18. Bxf7 {[%clk 0:00:44]}  Kb8 {[%clk 0:00:26]} 19. Nxg5 {[%clk 0:00:24]}  Rhg8 {[%clk 0:00:24]} 20. Qh5 {[%clk 0:00:18]}  Qxh5 {[%clk 0:00:14]} 21. Bxh5 {[%clk 0:00:19]}  h6 {[%clk 0:00:15]} 22. Bf7 {[%clk 0:00:10]}  Rg7 {[%clk 0:00:11]} 23. Kf1 {[%clk 0:00:10]}  hxg5 {[%clk 0:00:11]} 24. Be6 {[%clk 0:00:11]}  g4 {[%clk 0:00:09]} 25. d5 {[%clk 0:00:11]}  Ne7 {[%clk 0:00:08]} 26. Bd4 {[%clk 0:00:11]}  Rg6 {[%clk 0:00:08]} 27. Kg2 {[%clk 0:00:08]}  Rh6 {[%clk 0:00:07]} 28. Rh1 {[%clk 0:00:09]}  Rxh1 {[%clk 0:00:08]} 29. Rxh1 {[%clk 0:00:10]}  Bf4 {[%clk 0:00:08]} 30. Rh4 {[%clk 0:00:09]}  Nxd5 {[%clk 0:00:08]} 31. Rxg4 {[%clk 0:00:10]}  Bc1 {[%clk 0:00:08]} 32. Bxd5 {[%clk 0:00:10]}  b6 {[%clk 0:00:04]} 33. Rg8 {[%clk 0:00:10]}  Rxg8+ {[%clk 0:00:03]} 34. Bxg8 {[%clk 0:00:11]} 1-0


[Site "https://www.chess.com"]

[Event "Titled Tuesday Blitz February 01 B 2022"]
[White "Quintiliano Pinto, Renato R."]
[Black "Van Foreest, Jorden"]
[WhiteFideId "2117568"]
[BlackFideId "1039784"]
[WhiteElo "2439"]
[BlackElo "2609"]
[Result "0-1"]
[Round "03"]
[TimeControl "180+1"]
[Date "2022.02.01"]
[WhiteClock "0:00:02"]
[BlackClock "0:00:09"]

1. Nf3 {[%clk 0:02:56]}  g6 {[%clk 0:02:59]} 2. d4 {[%clk 0:02:56]}  Nf6 {[%clk 0:02:59]} 3. c4 {[%clk 0:02:56]}  Bg7 {[%clk 0:02:59]} 4. Nc3 {[%clk 0:02:56]}  O-O {[%clk 0:02:57]} 5. e4 {[%clk 0:02:56]}  c6 {[%clk 0:02:58]} 6. Be2 {[%clk 0:02:53]}  d5 {[%clk 0:02:57]} 7. e5 {[%clk 0:02:53]}  Ne4 {[%clk 0:02:56]} 8. O-O {[%clk 0:02:49]}  Bf5 {[%clk 0:02:54]} 9. Be3 {[%clk 0:02:48]}  Na6 {[%clk 0:02:48]} 10. Qb3 {[%clk 0:02:41]}  Rb8 {[%clk 0:02:35]} 11. cxd5 {[%clk 0:02:35]}  Nxc3 {[%clk 0:02:35]} 12. bxc3 {[%clk 0:02:34]}  cxd5 {[%clk 0:02:34]} 13. Nh4 {[%clk 0:02:19]}  Be6 {[%clk 0:02:24]} 14. f4 {[%clk 0:02:17]}  f5 {[%clk 0:02:23]} 15. Nf3 {[%clk 0:02:14]}  h6 {[%clk 0:02:23]} 16. Qa3 {[%clk 0:02:10]}  Qd7 {[%clk 0:02:17]} 17. Rab1 {[%clk 0:01:59]}  Rfc8 {[%clk 0:02:15]} 18. Rfc1 {[%clk 0:01:45]}  Bf7 {[%clk 0:02:14]} 19. Nd2 {[%clk 0:01:13]}  e6 {[%clk 0:02:11]} 20. c4 {[%clk 0:00:54]}  dxc4 {[%clk 0:02:00]} 21. Nxc4 {[%clk 0:00:52]}  Bf8 {[%clk 0:02:00]} 22. Nd6 {[%clk 0:00:47]}  Rd8 {[%clk 0:01:47]} 23. d5 {[%clk 0:00:30]}  exd5 {[%clk 0:01:42]} 24. Bxa6 {[%clk 0:00:24]}  Rbc8 {[%clk 0:01:43]} 25. Rxc8 {[%clk 0:00:21]}  Rxc8 {[%clk 0:01:41]} 26. Bb5 {[%clk 0:00:20]}  Qd8 {[%clk 0:01:38]} 27. Bxa7 {[%clk 0:00:16]}  Ra8 {[%clk 0:01:33]} 28. Nxf7 {[%clk 0:00:12]}  Kxf7 {[%clk 0:01:27]} 29. Qe3 {[%clk 0:00:12]}  Qa5 {[%clk 0:01:20]} 30. Bd4 {[%clk 0:00:11]}  Ke6 {[%clk 0:01:08]} 31. a4 {[%clk 0:00:08]}  Rc8 {[%clk 0:01:05]} 32. Rc1 {[%clk 0:00:08]}  Rxc1+ {[%clk 0:00:39]} 33. Qxc1 {[%clk 0:00:09]}  Qb4 {[%clk 0:00:40]} 34. Qc8+ {[%clk 0:00:07]}  Kf7 {[%clk 0:00:40]} 35. Qd7+ {[%clk 0:00:07]}  Kg8 {[%clk 0:00:40]} 36. Qxd5+ {[%clk 0:00:08]}  Kh7 {[%clk 0:00:39]} 37. h3 {[%clk 0:00:08]}  Qd2 {[%clk 0:00:36]} 38. Qd7+ {[%clk 0:00:06]}  Bg7 {[%clk 0:00:36]} 39. Bf2 {[%clk 0:00:05]}  Qc1+ {[%clk 0:00:32]} 40. Bf1 {[%clk 0:00:04]}  g5 {[%clk 0:00:12]} 41. Qxf5+ {[%clk 0:00:03]}  Kh8 {[%clk 0:00:12]} 42. e6 {[%clk 0:00:02]}  Qc7 {[%clk 0:00:09]} 0-1


[Site "https://www.chess.com"]